bitfinex/quotes_SOLUSD_20260306
["timestamp","ask_amount","ask_price","bid_price","bid_amount"]
[1772835619678,0.45862296,84.674,84.653,11.81293043]
[1772835620096,0.45862296,84.674,84.654,0.49565334]
[1772835623198,0.45862296,84.674,84.656,0.49565334]
[1772835625997,0.45862296,84.674,84.66,0.5]
[1772835632209,0.48692932,84.683,84.661,0.49166887]
[1772835633788,0.48692932,84.683,84.662,0.49166887]
[1772835635412,0.48692932,84.683,84.664,0.49166887]
[1772835635913,0.48692932,84.687,84.664,0.49166887]
[1772835636206,11.8080945,84.688,84.664,0.49166887]
[1772835636589,12.29502382,84.688,84.664,0.49166887]
[1772835636889,0.48692932,84.687,84.664,0.49166887]
[1772835646524,0.48692932,84.685,84.664,0.49166887]
[1772835648827,0.48692932,84.683,84.664,0.49166887]
[1772835649118,0.48692932,84.683,84.666,0.49166887]
[1772835651727,0.48692932,84.687,84.666,0.49166887]
[1772835652831,0.48692932,84.687,84.668,0.49166887]
[1772835656627,0.46132437,84.685,84.668,0.49166887]
[1772835659828,11.80860611,84.684,84.668,0.49166887]
[1772835660036,0.46132437,84.683,84.668,0.49166887]
[1772835662837,0.46132437,84.683,84.67,0.5]
[1772835663145,0.49950555,84.681,84.67,0.5]
[1772835674648,0.49950555,84.679,84.67,0.5]
[1772835676745,0.49950555,84.688,84.67,0.5]
[1772835676951,0.49950555,84.688,84.671,0.48488224]
[1772835677843,0.49950555,84.688,84.672,0.48488224]
[1772835678831,0.49950555,84.688,84.674,0.48488224]
[1772835682143,0.49950555,84.692,84.674,0.48488224]
[1772835682545,0.49950555,84.692,84.68,0.5]
[1772835682749,0.49950555,84.708,84.681,0.48488224]
[1772835684948,0.49950555,84.706,84.681,0.48488224]
[1772835688569,41.31889925,84.707,84.681,0.48488224]
[1772835688570,0.49950555,84.704,84.681,0.48488224]
[1772835690874,11.80595728,84.703,84.681,12.29384757]
[1772835691168,0.2,84.71,84.682,0.48488224]
[1772835691849,0.2,84.71,84.683,0.14216157]
[1772835692051,0.65087014,84.71,84.686,0.47246261]
[1772835693355,0.45087014,84.709,84.688,0.47246261]
[1772835693996,12.2559912,84.709,84.688,0.47246261]
[1772835694468,0.45087014,84.708,84.688,0.47246261]
[1772835694848,0.45087014,84.708,84.68,0.5]
[1772835695572,0.45087014,84.706,84.68,0.5]
[1772835697171,0.45087014,84.704,84.678,0.47246261]
[1772835698469,0.45087014,84.702,84.678,0.47246261]
[1772835700682,11.80623605,84.701,84.678,0.47246261]
[1772835700874,0.45087014,84.7,84.678,0.47246261]
[1772835702178,29.51489321,84.703,84.678,0.47246261]
[1772835702179,0.45087014,84.698,84.678,0.47246261]
[1772835704485,0.45087014,84.696,84.678,0.47246261]
[1772835707483,11.80707243,84.695,84.678,0.47246261]
[1772835709782,0.45087014,84.695,84.678,0.47246261]
[1772835714198,11.80721184,84.694,84.678,0.47246261]
[1772835714587,0.45087014,84.693,84.678,0.47246261]
[1772835714779,0.45087014,84.693,84.672,12.2827215]
[1772835715100,0.45087014,84.693,84.673,0.47246261]
[1772835715396,0.45087014,84.693,84.652,0.14216157]
[1772835715397,0.45087014,84.689,84.661,0.14216157]
[1772835716522,0.47132028,84.687,84.661,0.14216157]
[1772835717011,0.47132028,84.679,84.647,0.46785958]
[1772835717186,0.47132028,84.679,84.65,0.14216157]
[1772835717500,0.47132028,84.679,84.652,0.14216157]
[1772835719705,4.38113501,84.68,84.652,0.14216157]
[1772835719706,0.47132028,84.677,84.652,0.14216157]
[1772835719928,0.47132028,84.677,84.652,0.61002115]
[1772835720284,0.47132028,84.669,84.637,0.46785958]
[1772835720492,0.47132028,84.677,84.637,0.46785958]
[1772835720806,0.47132028,84.699,84.65,0.14216157]
[1772835721104,0.47132028,84.699,84.655,0.46785958]
[1772835721820,0.45087743,84.695,84.657,0.47560151]
[1772835722492,0.45087743,84.695,84.66,0.14216157]
[1772835722708,0.45087743,84.695,84.657,0.28432314]
[1772835722709,0.45087743,84.695,84.665,0.47560151]
[1772835724911,0.2,84.71,84.666,0.14216157]
[1772835725100,0.1,84.75,84.671,0.14216157]
[1772835725403,0.1,84.75,84.666,88.58337466]
[1772835725404,11.90220237,84.73,84.681,0.28432314]
[1772835725715,16.28241566,84.73,84.687,0.14216157]
[1772835725888,16.28241566,84.73,84.694,0.47560151]
[1772835727194,0.45087743,84.727,84.696,0.47560151]
[1772835729820,0.45087743,84.725,84.696,0.47560151]
[1772835730823,0.45087743,84.725,84.698,0.47560151]
[1772835731220,0.45087743,84.723,84.698,0.47560151]
[1772835735527,0.45087743,84.721,84.698,0.47560151]
[1772835735916,0.45087743,84.721,84.7,0.47560151]
[1772835737527,0.45087743,84.719,84.692,0.47560151]
[1772835737923,0.45087743,84.719,84.685,0.47560151]
[1772835738924,0.45087743,84.719,84.686,0.47560151]
[1772835739814,0.45087743,84.709,84.677,0.47560151]
[1772835742823,0.45087743,84.689,84.66,0.47560151]
[1772835743817,0.45087743,84.687,84.661,11.81181417]
[1772835745136,0.45087743,84.687,84.656,11.81242147]
[1772835745726,0.45087743,84.687,84.656,12.28802298]
[1772835745938,0.45087743,84.685,84.657,0.47560151]
[1772835748434,4.38021329,84.69,84.657,0.47560151]
[1772835748435,0.45087743,84.683,84.657,0.47560151]
[1772835750039,0.45087743,84.679,84.649,0.47560151]
[1772835750920,0.45087743,84.677,84.651,0.47560151]
[1772835752131,0.49490784,84.675,84.652,12.28834196]
[1772835753229,0.49490784,84.673,84.653,0.47527198]
[1772835755622,0.49490784,84.673,84.653,12.28815369]
[1772835755821,0.49490784,84.671,84.653,12.28815369]
[1772835759042,0.49490784,84.671,84.654,0.47527198]
[1772835759339,11.81055863,84.67,84.654,0.47527198]
[1772835759537,0.49490784,84.669,84.654,0.47527198]
[1772835764044,4.38021329,84.68,84.641,11.81460521]
[1772835764045,0.49490784,84.667,84.641,11.81460521]
[1772835766224,0.49490784,84.665,84.642,0.47527198]
[1772835767651,0.49490784,84.663,84.642,0.47527198]
[1772835771961,0.49490784,84.661,84.642,0.47527198]
[1772835775255,0.49490784,84.659,84.629,11.81620408]
[1772835775563,0.49490784,84.659,84.63,0.47527198]
[1772835775947,11.81223274,84.658,84.63,0.47527198]
[1772835776148,0.47763687,84.657,84.632,0.49855299]
[1772835777242,0.47763687,84.655,84.631,11.81600122]
[1772835779555,11.81279088,84.654,84.631,11.81600122]
[1772835779860,0.47763687,84.653,84.631,11.81600122]
[1772835780357,0.47763687,84.649,84.628,15.56971209]
[1772835780859,0.47763687,84.649,84.629,0.49855299]
[1772835781459,0.47763687,84.639,84.619,0.49855299]
[1772835781643,0.47763687,84.637,84.614,0.49855299]
[1772835782958,0.47763687,84.637,84.612,11.81861153]
[1772835783148,0.45390839,84.629,84.601,0.46473838]
[1772835783863,0.45390839,84.627,84.603,0.46473838]
[1772835784041,11.81576373,84.633,84.603,0.46473838]
[1772835784242,0.45390839,84.645,84.605,0.46473838]
[1772835785665,0.45390839,84.667,84.615,0.46473838]
[1772835785855,0.45390839,84.667,84.604,0.14216157]
[1772835785856,11.81083762,84.668,84.625,0.46473838]
[1772835786863,40.28604971,84.672,84.628,0.46473838]
[1772835787051,40.28604971,84.672,84.633,0.14216157]
[1772835787253,40.28604971,84.672,84.634,0.46473838]
[1772835787469,40.28604971,84.672,84.642,0.46473838]
[1772835787470,27.82181027,84.672,84.642,0.46473838]
[1772835787651,27.82181027,84.672,84.643,0.14216157]
[1772835787652,27.42536914,84.672,84.643,0.14216157]
[1772835791787,0.5,84.671,84.635,0.42648471]
[1772835793980,0.5,84.671,84.637,0.42648471]
[1772835794870,0.5,84.669,84.636,11.81530318]
[1772835796783,0.5,84.649,84.594,4.96693726]
[1772835796979,0.5,84.649,84.597,8.66077128]
[1772835797178,0.5,84.649,84.598,0.28432314]
[1772835797888,0.5,84.649,84.597,4.82477569]
[1772835798084,0.5,84.649,84.598,0.42648471]
[1772835798289,0.5,84.649,84.601,4.82477569]
[1772835798583,0.5,84.649,84.602,0.14216157]
[1772835798783,0.5,84.647,84.602,0.14216157]
[1772835799681,0.5,84.651,84.602,0.14216157]
[1772835803594,0.5,84.651,84.603,0.28432314]
[1772835805894,0.5,84.651,84.608,4.82477569]
[1772835806084,0.5,84.651,84.61,4.82477569]
[1772835806397,0.5,84.651,84.613,0.42648471]
[1772835812602,0.5,84.651,84.615,0.42648471]
[1772835815587,0.5,84.651,84.617,0.42648471]
[1772835816504,0.5,84.65,84.617,0.42648471]
[1772835817592,0.5,84.65,84.619,0.42648471]
[1772835818592,0.5,84.669,84.619,0.42648471]
[1772835818792,0.5,84.668,84.619,0.42648471]
[1772835819409,0.5,84.668,84.622,4.82477569]
[1772835819599,0.5,84.668,84.623,0.42648471]
[1772835819800,0.5,84.668,84.625,0.42648471]
[1772835824017,0.5,84.666,84.627,0.42648471]
[1772835830722,0.5,84.666,84.629,0.42648471]
[1772835832718,4.38516605,84.7,84.642,0.46355922]
[1772835832926,4.38516605,84.71,84.654,0.46355922]
[1772835833096,4.38516605,84.7,84.654,0.46355922]
[1772835834725,4.38516605,84.7,84.646,0.14216157]
[1772835834726,0.49198791,84.697,84.656,0.46355922]
[1772835836634,41.3232898,84.698,84.658,0.48967146]
[1772835836635,0.49706969,84.695,84.658,0.48967146]
[1772835838527,0.49706969,84.687,84.645,11.8140469]
[1772835838724,0.49706969,84.679,84.645,11.8140469]
[1772835840031,0.49706969,84.679,84.645,12.30371836]
[1772835841314,0.49706969,84.677,84.642,0.14216157]
[1772835841828,0.49706969,84.677,84.642,0.63183303]
[1772835843036,0.49706969,84.677,84.642,0.14216157]
[1772835845638,0.45484226,84.669,84.629,0.48769347]
[1772835845928,0.45484226,84.669,84.635,0.48769347]
[1772835851042,0.45484226,84.667,84.637,0.48769347]
[1772835852315,0.45484226,84.667,84.628,0.14216157]
[1772835852519,41.33793168,84.668,84.627,11.81655972]
[1772835852520,0.45484226,84.659,84.627,11.81655972]
[1772835853139,0.45484226,84.657,84.627,11.81655972]
[1772835853442,0.45484226,84.657,84.628,0.48769347]
[1772835854347,0.45484226,84.655,84.629,11.81628047]
[1772835860250,0.45484226,84.653,84.624,11.9591402]
[1772835863359,0.45484226,84.651,84.624,0.48769347]
[1772835866056,0.45484226,84.651,84.626,0.48769347]
[1772835867959,0.45484226,84.651,84.628,0.48769347]
[1772835870157,0.45484226,84.651,84.629,11.81628047]
[1772835871657,0.45484226,84.649,84.623,0.48769347]
[1772835871855,0.45484226,84.649,84.624,0.14216157]
[1772835873964,0.45484226,84.649,84.624,0.62674981]
[1772835874264,0.45484226,84.649,84.625,0.48458824]
[1772835874460,0.47229944,84.647,84.622,0.48458824]
[1772835875866,0.47229944,84.647,84.624,0.62674981]
[1772835876069,0.47229944,84.647,84.625,0.48458824]
[1772835878764,0.47229944,84.647,84.626,12.30128759]
[1772835879463,0.47229944,84.647,84.627,0.48458824]
[1772835881682,0.47229944,84.647,84.628,11.81642009]
[1772835883972,0.47229944,84.647,84.628,0.48458824]
[1772835884969,0.47229944,84.646,84.616,0.48458824]
[1772835885975,60.9,84.671,84.606,0.14216157]
[1772835885976,0.47229944,84.662,84.618,0.48458824]
[1772835886171,0.47229944,84.659,84.618,0.48458824]
[1772835887176,0.47229944,84.659,84.617,41.3628467]
[1772835887386,0.47229944,84.659,84.617,11.8179562]
[1772835887878,0.47229944,84.659,84.618,0.48458824]
[1772835890653,0.47229944,84.649,84.615,0.48458824]
[1772835890860,0.47229944,84.649,84.614,0.48458824]
[1772835893382,0.47229944,84.647,84.616,0.48458824]
[1772835896692,0.46086031,84.645,84.618,0.46878907]
[1772835899779,0.46086031,84.645,84.62,0.46878907]
[1772835900288,0.46086031,84.643,84.62,0.46878907]
[1772835901274,0.46086031,84.666,84.624,0.46878907]
[1772835901478,0.46086031,84.666,84.634,0.46878907]
[1772835901787,0.46086031,84.666,84.636,0.45317374]
[1772835901979,0.4687203,84.664,84.636,0.45317374]
[1772835905784,0.4687203,84.664,84.638,0.45317374]
[1772835908793,0.4687203,84.664,84.639,12.26805813]
[1772835908975,0.4687203,84.664,84.639,11.81488439]
[1772835909180,0.4687203,84.664,84.64,0.45317374]
[1772835909382,0.4687203,84.662,84.64,0.45317374]
[1772835911796,0.4687203,84.662,84.641,11.81460521]
[1772835912097,0.4687203,84.662,84.642,0.45317374]
[1772835913478,0.4687203,84.669,84.644,0.45317374]
[1772835917699,0.4687203,84.669,84.646,0.45317374]
[1772835920410,0.4687203,84.669,84.647,11.81376776]
[1772835920598,0.4687203,84.669,84.648,0.45317374]
[1772835921901,0.4687203,84.675,84.648,0.45317374]
[1772835924783,0.4687203,84.675,84.649,11.81348864]
[1772835924983,0.4687203,84.675,84.65,0.45317374]
[1772835926096,0.4687203,84.679,84.652,0.45317374]
[1772835930810,0.4687203,84.678,84.654,0.45317374]
[1772835932816,0.4687203,84.678,84.656,0.45140527]
[1772835933712,0.4687203,84.678,84.657,11.81237227]
[1772835934017,0.4687203,84.678,84.657,12.26377754]
[1772835934620,0.45849626,84.697,84.658,0.45140527]
[1772835936025,11.80693303,84.696,84.659,11.81209322]
[1772835936317,0.45849626,84.695,84.66,0.45140527]
[1772835938602,11.80721184,84.694,84.66,0.45140527]
[1772835938801,0.45849626,84.693,84.662,0.45140527]
[1772835940798,0.45849626,84.691,84.664,0.45140527]
[1772835946030,0.45849626,84.689,84.666,0.45140527]
[1772835951329,0.45849626,84.687,84.667,12.26238239]
[1772835951522,0.45849626,84.687,84.668,0.45140527]
[1772835953244,0.45849626,84.709,84.668,0.45140527]
[1772835953535,29.51225055,84.711,84.67,0.45140527]
[1772835953536,0.45849626,84.706,84.67,0.45140527]
[1772835955242,0.45849626,84.706,84.672,0.45140527]
[1772835955640,0.45849626,84.721,84.674,0.45140527]
[1772835956538,0.45849626,84.721,84.676,0.49624158]
[1772835959741,0.47072747,84.719,84.678,0.49624158]
[1772835963833,0.47900628,84.717,84.68,0.4513827]
[1772835965971,0.47900628,84.715,84.682,0.4513827]
[1772835967967,0.47900628,84.713,84.684,0.4513827]
[1772835968167,0.47900628,84.713,84.686,0.4513827]
[1772835970657,0.1,84.73,84.676,0.14216157]
[1772835970658,0.47900628,84.722,84.689,4.82477569]
[1772835970857,0.47900628,84.722,84.692,0.4513827]
[1772835971061,0.47900628,84.722,84.699,0.14216157]
[1772835971265,0.47900628,84.722,84.706,0.4513827]
[1772835971869,0.47900628,84.722,84.708,0.4513827]
[1772835973151,0.47900628,84.721,84.696,0.4513827]
[1772835973355,0.47900628,84.722,84.696,0.4513827]
[1772835974558,0.47900628,84.722,84.698,0.4513827]
[1772835974872,0.1,84.73,84.7,0.4513827]
[1772835975075,0.1,84.73,84.701,0.4513827]
[1772835980681,0.1,84.73,84.703,0.4513827]
[1772835980883,0.57900628,84.73,84.705,0.4513827]
[1772835983883,0.57900628,84.73,84.707,0.4513827]
[1772835985570,0.47900628,84.729,84.709,0.4513827]
[1772835985775,0.1,84.73,84.709,0.4513827]
[1772835986175,0.57900628,84.73,84.709,0.4513827]
[1772835986767,0.57900628,84.73,84.71,11.8049817]
[1772835986970,0.1,84.74,84.712,0.4513827]
[1772835987290,0.1,84.74,84.716,0.4513827]
[1772835988677,0.1,84.74,84.717,11.80400627]
[1772835988885,0.1,84.74,84.718,0.4513827]
[1772835989093,0.57900628,84.74,84.718,0.4513827]
[1772835991194,0.57900628,84.74,84.719,11.80372761]
[1772835991399,0.57900628,84.74,84.72,0.4513827]
[1772835991783,0.49133619,84.738,84.695,12.28581771]
[1772835991983,0.49133619,84.738,84.696,0.47874528]
[1772835993494,0.49133619,84.736,84.697,11.80679362]
[1772835994506,0.49133619,84.736,84.697,12.2855389]
[1772835994801,0.49133619,84.734,84.701,0.47874528]
[1772835995385,0.49133619,84.734,84.705,0.47874528]
[1772835998706,0.49133619,84.734,84.706,11.80553915]
[1772835998907,0.49133619,84.734,84.707,0.47874528]
[1772836001809,0.49133619,84.734,84.709,0.47874528]
[1772836004706,0.49133619,84.734,84.71,11.8049817]
[1772836004913,0.49133619,84.734,84.711,0.47874528]
[1772836010720,0.49133619,84.734,84.712,11.80470299]
[1772836010922,0.49133619,84.734,84.712,12.28344827]
[1772836011111,0.49133619,84.734,84.713,0.47874528]
[1772836013705,0.49133619,84.732,84.693,0.47874528]
[1772836014423,0.49133619,84.732,84.692,41.32621735]
[1772836014424,0.49133619,84.732,84.695,0.47874528]
[1772836018007,0.49133619,84.732,84.694,0.14216157]
[1772836018008,0.45852285,84.73,84.697,0.47728153]
[1772836018326,0.45852285,84.73,84.699,0.47728153]
[1772836019822,0.45852285,84.73,84.703,0.14216157]
[1772836020140,0.45852285,84.73,84.706,0.47728153]
[1772836021341,0.45852285,84.728,84.7,11.80637544]
[1772836021635,0.45852285,84.719,84.688,11.80802788]
[1772836021827,0.47927647,84.717,84.688,11.80802788]
[1772836023715,0.47927647,84.709,84.677,0.45513384]
[1772836024032,0.47927647,84.709,84.69,26.60941063]
[1772836024217,0.47927647,84.709,84.69,26.20941063]
[1772836024536,0.47927647,84.709,84.69,26.00941063]
[1772836025440,0.02099372,84.699,84.669,0.48950314]
[1772836025817,11.80651483,84.699,84.67,11.81055863]
[1772836026119,11.80651483,84.699,84.66,29.52975686]
[1772836026120,0.02099372,84.698,84.666,11.8110493]
[1772836026319,0.02099372,84.689,84.662,12.30111263]
[1772836026518,0.02099372,84.689,84.663,0.48950314]
[1772836027536,0.02099372,84.688,84.665,0.48950314]
[1772836031839,0.02099372,84.688,84.66,0.48950314]
[1772836032241,0.02099372,84.688,84.662,0.48950314]
[1772836037046,0.02099372,84.688,84.663,12.30103828]
[1772836039052,0.02099372,84.688,84.664,0.48950314]
[1772836041047,0.02099372,84.688,84.651,30.02252434]
[1772836041247,0.02099372,84.688,84.653,0.48950314]
[1772836041431,0.02099372,84.688,84.655,0.48950314]
[1772836041627,11.80677961,84.698,84.655,0.48950314]
[1772836042238,11.80592749,84.704,84.655,0.48950314]
[1772836042934,0.02099372,84.709,84.666,0.48950314]
[1772836043248,0.02099372,84.709,84.676,0.48950314]
[1772836044849,0.02099372,84.717,84.676,0.48950314]
[1772836045050,0.02099372,84.717,84.678,0.48950314]
[1772836045659,0.02099372,84.728,84.68,0.48950314]
[1772836045857,11.82332822,84.729,84.686,0.48950314]
[1772836046657,0.02099372,84.729,84.688,0.48950314]
[1772836049762,0.02099372,84.729,84.69,0.48950314]
[1772836052766,0.02099372,84.729,84.692,0.49396284]
[1772836055863,0.02099372,84.729,84.694,0.49396284]
[1772836057561,0.02099372,84.729,84.696,0.49396284]
[1772836059867,0.02099372,84.729,84.697,11.80679362]
[1772836060071,0.02099372,84.729,84.698,0.49396284]
[1772836065379,0.02099372,84.729,84.7,0.49396284]
[1772836071867,0.02099372,84.729,84.702,0.49396284]
[1772836072380,0.02099372,84.738,84.702,0.49396284]
[1772836072781,0.1,84.74,84.707,0.14216157]
[1772836072978,0.1,84.74,84.716,0.49396284]
[1772836073977,0.1,84.74,84.718,0.49396284]
[1772836074286,0.02099372,84.739,84.718,0.49396284]
[1772836078164,0.1,84.74,84.72,0.48950314]
[1772836082381,0.1,84.74,84.722,0.48950314]
[1772836083289,0.1,84.75,84.722,0.45666526]
[1772836084374,0.1,84.75,84.724,0.45666526]
[1772836084574,0.1,84.75,84.726,0.45666526]
[1772836084774,0.1,84.75,84.723,41.31109615]
[1772836084775,11.79818834,84.759,84.727,0.45666526]
[1772836084976,11.7976783,84.763,84.727,0.45666526]
[1772836085287,11.89807021,84.76,84.727,0.45666526]
[1772836086671,0.1,84.76,84.727,0.45666526]
[1772836086876,0.1,84.76,84.734,0.14216157]
[1772836087093,0.1,84.76,84.735,0.45666526]
[1772836089991,0.1,84.76,84.737,0.45666526]
[1772836092481,0.1,84.76,84.739,0.45666526]
[1772836094813,0.1,84.76,84.741,0.45666526]
[1772836097800,0.1,84.76,84.742,11.80052394]
[1772836098194,0.1,84.76,84.743,0.45666526]
[1772836100803,0.1,84.76,84.745,0.45666526]
[1772836102298,0.1,84.76,84.734,0.45666526]
[1772836102482,0.1,84.76,84.736,0.45666526]
[1772836104910,0.22099372,84.76,84.738,0.45666526]
[1772836105207,0.12099372,84.759,84.738,0.45666526]
[1772836106109,0.87860403,84.779,84.738,0.5]
[1772836106312,0.87860403,84.779,84.739,0.5]
[1772836109813,0.87860403,84.779,84.743,0.5]
[1772836110006,0.87860403,84.779,84.745,0.5]
[1772836112094,0.87860403,84.779,84.747,0.5]
[1772836114092,0.87860403,84.779,84.749,0.5]
[1772836115804,0.87860403,84.779,84.744,0.14216157]
[1772836115805,0.87860403,84.779,84.751,0.5]
[1772836118814,0.87860403,84.779,84.752,11.79913158]
[1772836119009,0.87860403,84.779,84.753,0.5]
[1772836121917,0.87860403,84.779,84.755,0.5]
[1772836124302,0.87860403,84.779,84.757,0.5]
[1772836126226,0.2,84.78,84.757,0.5]
[1772836126522,0.2,84.78,84.759,0.5]
[1772836128213,11.79537385,84.779,84.742,0.5]
[1772836128413,11.79537385,84.779,84.744,0.5]
[1772836128618,11.79537385,84.779,84.746,0.5]
[1772836130632,4.37140435,84.77,84.735,0.5]
[1772836130812,4.37140435,84.76,84.732,11.80184865]
[1772836131828,11.79815712,84.759,84.728,11.80247379]
[1772836132015,11.79815712,84.759,84.728,12.30247379]
[1772836132210,11.79815712,84.759,84.728,11.80247379]
[1772836132434,11.79815712,84.759,84.729,0.5]
[1772836132933,41.2839712,84.779,84.735,0.5]
[1772836134233,4.37140435,84.76,84.72,0.5]
[1772836138739,11.79815712,84.759,84.722,0.5]
[1772836138925,4.37140435,84.75,84.722,0.5]
[1772836139232,11.79815712,84.759,84.722,0.5]
[1772836139930,41.29354993,84.759,84.723,11.80317033]
[1772836140244,41.29354993,84.759,84.723,12.30317033]
[1772836143033,4.37140435,84.75,84.723,12.30317033]
[1772836144731,4.37140435,84.75,84.723,0.5]
[1772836145441,11.79954925,84.749,84.723,0.5]
[1772836147835,41.29842239,84.749,84.718,0.5]
[1772836150530,41.29842239,84.749,84.714,0.5]
[1772836150730,4.37140435,84.74,84.714,0.5]
[1772836152639,4.37657123,84.74,84.715,11.80428495]
[1772836153160,4.37657123,84.74,84.714,0.5]
[1772836153358,4.37657123,84.74,84.714,12.30430843]
[1772836153856,4.37657123,84.74,84.715,0.5]
[1772836154846,11.80094171,84.739,84.715,0.5]
[1772836156246,11.80094171,84.739,84.709,12.30508967]
[1772836156648,11.80094171,84.739,84.71,0.5]
[1772836157145,11.80094171,84.739,84.712,0.5]
[1772836157550,41.30329599,84.739,84.712,0.5]
[1772836158729,41.30329599,84.739,84.708,0.5]
[1772836160645,11.80094171,84.739,84.71,0.5]
[1772836166929,11.79954925,84.749,84.712,0.5]
[1772836169164,41.29842239,84.749,84.714,0.5]
[1772836172242,41.29842239,84.749,84.715,11.80428495]
[1772836172448,41.29842239,84.749,84.716,0.5]
[1772836173158,4.37657123,84.74,84.716,0.5]
[1772836175864,11.80094171,84.739,84.716,0.5]
[1772836178260,11.80094171,84.739,84.718,0.5]
[1772836181448,11.79968848,84.748,84.72,0.5]
[1772836183039,4.37657123,84.74,84.72,0.5]
[1772836184247,4.37657123,84.75,84.72,0.5]
[1772836189944,11.79954925,84.749,84.722,0.5]
[1772836195158,4.37657123,84.74,84.722,0.5]
[1772836197961,11.80094171,84.739,84.713,0.5]
[1772836199866,41.30329599,84.739,84.713,0.5]
[1772836204774,4.37657123,84.76,84.713,0.5]
[1772836204972,11.79815712,84.759,84.715,0.5]
[1772836205466,41.29354993,84.759,84.715,0.5]
[1772836205974,4.37657123,84.75,84.715,0.5]
[1772836206469,4.37657123,84.74,84.715,0.5]
[1772836206667,4.37657123,84.75,84.715,0.5]
[1772836206877,4.37657123,84.74,84.715,12.3042762]
[1772836207173,4.37657123,84.74,84.716,0.5]
[1772836210475,11.80094171,84.739,84.716,0.5]
[1772836212581,4.37657123,84.73,84.698,0.5]
[1772836212874,11.80094171,84.739,84.698,0.5]
[1772836213880,41.30329599,84.739,84.698,0.5]
[1772836214784,41.30329599,84.739,84.7,0.5]
[1772836217869,41.30329599,84.739,84.702,0.5]
[1772836220893,41.30329599,84.739,84.703,11.80595728]
[1772836221077,41.30329599,84.739,84.704,0.5]
[1772836223601,41.30329599,84.739,84.706,0.5]
[1772836224902,4.37679035,84.73,84.697,0.5]
[1772836225078,4.37679035,84.72,84.697,0.5]
[1772836225465,4.37679035,84.73,84.697,0.5]
[1772836225671,4.37679035,84.72,84.697,0.5]
[1772836226288,41.30817075,84.729,84.697,0.5]
[1772836228210,41.30817075,84.729,84.698,0.5]
[1772836239597,4.37679035,84.72,84.695,0.5]
[1772836243196,11.80372761,84.719,84.695,0.5]
[1772836253302,11.80372761,84.719,84.695,11.80698221]
[1772836253499,11.80372761,84.719,84.696,0.5]
[1772836254309,11.80247379,84.728,84.696,0.5]
[1772836255596,4.37679035,84.73,84.697,11.80679362]
[1772836255795,4.37679035,84.73,84.698,0.5]
[1772836257812,11.8023345,84.729,84.7,0.5]
[1772836260115,29.50438369,84.734,84.701,11.80623605]
[1772836260316,29.50438369,84.734,84.702,0.5]
[1772836261111,11.80094171,84.739,84.702,0.5]
[1772836271421,11.80094171,84.739,84.704,0.5]
[1772836271616,11.80094171,84.739,84.706,0.5]
[1772836274529,29.5002452,84.746,84.708,0.5]
[1772836274724,4.37600255,84.74,84.708,0.5]
[1772836278022,4.37600255,84.73,84.708,0.5]
[1772836280626,11.8023345,84.729,84.708,0.5]
[1772836281343,4.37600255,84.72,84.708,0.5]
[1772836285034,4.37600255,84.72,74.881,375.73421817]
[1772836285035,11.80372761,84.719,84.701,0.5]
[1772836288737,11.80372761,84.719,84.696,0.5]
[1772836290627,4.37600255,84.71,84.674,0.5]
[1772836290940,4.37600255,84.7,84.674,0.5]
[1772836291136,4.37600255,84.71,84.674,0.5]
[1772836291838,11.80512106,84.709,84.675,0.5]
[1772836296038,4.37600255,84.72,84.677,0.5]
[1772836297140,41.31792371,84.709,84.677,0.5]
[1772836305935,4.37600255,84.7,84.677,0.5]
[1772836306263,41.31792371,84.709,84.677,0.5]
[1772836308647,59.01027959,84.731,84.659,0.5]
[1772836308648,4.37600255,84.69,84.659,0.5]
[1772836308947,4.37600255,84.69,84.661,0.5]
[1772836309146,4.37600255,84.68,84.661,0.5]
[1772836309850,11.80930336,84.679,84.661,0.5]
[1772836310629,11.80930336,84.679,84.656,0.5]
[1772836312030,4.37600255,84.67,84.649,8.43171038]
[1772836312343,4.37600255,84.67,84.65,0.5]
[1772836312957,41.33256178,84.679,84.65,0.5]
[1772836314542,11.80930336,84.679,84.651,0.5]
[1772836317252,11.80930336,84.679,84.65,11.81334908]
[1772836317253,11.80930336,84.679,84.653,0.5]
[1772836322954,11.80930336,84.679,84.652,11.81306998]
[1772836323460,11.80930336,84.679,84.653,0.5]
[1772836326543,11.80776951,84.69,84.655,0.5]
[1772836326963,16.18377206,84.69,84.655,0.5]
[1772836335865,4.37600255,84.68,84.657,0.5]
[1772836336063,41.32719329,84.69,84.657,0.5]
[1772836336064,4.37600255,84.67,84.657,0.5]
[1772836336565,4.38343811,84.67,84.657,0.5]